bitfinex/quotes_ETHUSD_20250903
["timestamp","ask_amount","ask_price","bid_price","bid_amount"]
[1756915653455,0.9545,4477.7,4477.3,3.802]
[1756915653764,0.9545,4477.6,4477.4,6.0353969]
[1756915654083,1.2481,4477.5,4477.4,6.0353969]
[1756915654368,1e-08,4477.8,4477.7,2.23328941]
[1756915654673,0.47230001,4477.8,4477.7,6.03528941]
[1756915654873,0.29360001,4477.8,4477.7,6.03528941]
[1756915655031,0.29360001,4477.8,4477.7,9.03528941]
[1756915655231,0.77580001,4477.8,4477.7,5.23328941]
[1756915655432,1.24810001,4477.8,4477.7,5.23328941]
[1756915655663,1.24810001,4477.8,4477.7,9.03528941]
[1756915655966,1.24810001,4477.8,4477.7,10.22771812]
[1756915658156,0.77580001,4477.8,4477.7,10.22771812]
[1756915659049,1e-08,4477.8,4477.7,11.33071812]
[1756915660352,1e-08,4477.8,4477.7,11.76041812]
[1756915660863,1e-08,4477.8,4477.7,11.33071812]
[1756915661568,1e-08,4477.8,4477.7,7.52871812]
[1756915661754,1e-08,4477.8,4477.7,11.33071812]
[1756915663363,1e-08,4477.8,4477.7,11.44271812]
[1756915663533,0.29360001,4477.8,4477.7,11.13171812]
[1756915663734,1.24810001,4477.8,4477.7,16.8502063]
[1756915664371,0.29360001,4477.8,4477.7,16.8502063]
[1756915664539,1e-08,4477.8,4477.7,16.8502063]
[1756915664871,1e-08,4477.8,4477.7,11.13171812]
[1756915665442,0.77580001,4477.8,4477.7,11.13071812]
[1756915665889,1e-08,4477.8,4477.7,11.13071812]
[1756915666071,1e-08,4477.8,4477.7,7.32971812]
[1756915666248,1e-08,4477.8,4477.7,11.44171812]
[1756915667272,1e-08,4477.8,4477.7,11.13071812]
[1756915667474,0.29360001,4477.8,4477.7,11.13071812]
[1756915667640,0.77580001,4477.8,4477.7,11.13071812]
[1756915668041,1e-08,4477.8,4477.7,7.32971812]
[1756915668246,1e-08,4477.8,4477.7,11.44171812]
[1756915669560,1e-08,4477.8,4477.7,17.1602063]
[1756915670981,0.77580001,4477.8,4477.7,11.13071812]
[1756915671273,0.77580001,4477.8,4477.7,7.32971812]
[1756915671474,1.24810001,4477.8,4477.7,11.13071812]
[1756915671782,0.77580001,4477.8,4477.7,11.13071812]
[1756915672183,1.24810001,4477.8,4477.7,11.13071812]
[1756915672384,1.24810001,4477.8,4477.7,7.32971812]
[1756915672575,1.24810001,4477.8,4477.7,11.13071812]
[1756915673084,0.77580001,4477.8,4477.7,11.13071812]
[1756915673286,1e-08,4477.8,4477.7,11.13071812]
[1756915673485,1e-08,4477.8,4477.7,7.64071812]
[1756915673667,0.29360001,4477.8,4477.7,11.13071812]
[1756915673983,1e-08,4477.8,4477.7,11.13071812]
[1756915674187,1e-08,4477.8,4477.7,17.5899063]
[1756915674388,1e-08,4477.8,4477.7,17.9655063]
[1756915676756,1e-08,4477.8,4477.7,12.24601812]
[1756915677458,1e-08,4477.8,4477.7,11.87041812]
[1756915677891,1e-08,4477.8,4477.7,11.95991389]
[1756915679112,1e-08,4477.8,4477.7,12.33551389]
[1756915679258,1e-08,4477.8,4477.7,12.55931389]
[1756915682064,1e-08,4477.8,4477.7,7.03039389]
[1756915682270,1e-08,4477.8,4477.7,5.4636833]
[1756915682468,1e-08,4477.8,4477.7,9.2626833]
[1756915683601,1e-08,4477.8,4477.7,8.8870833]
[1756915684101,1e-08,4477.8,4477.7,12.2626833]
[1756915684306,0.002,4478.3,4478.2,3.02504006]
[1756915684492,0.002,4478.3,4478.2,17.83005353]
[1756915684669,0.002,4478.3,4478.2,18.66772313]
[1756915687603,0.002,4478.3,4478.2,18.22342313]
[1756915687907,0.002,4478.3,4478.2,18.66772313]
[1756915689199,0.002,4478.3,4478.2,18.22242313]
[1756915689502,0.002,4478.3,4478.2,18.44622313]
[1756915690596,0.7812,4478.3,4478.2,8.62603495]
[1756915690785,1.217,4478.3,4478.2,8.62603495]
[1756915690992,1.217,4478.3,4478.2,12.42403495]
[1756915691409,0.002,4478.3,4478.2,12.42403495]
[1756915691708,0.002,4478.3,4478.2,12.72773495]
[1756915691885,0.002,4478.3,4478.2,12.61573495]
[1756915692086,0.002,4478.3,4478.2,13.06003495]
[1756915692414,0.002,4478.3,4478.2,12.61573495]
[1756915692576,0.002,4478.3,4478.2,12.72773495]
[1756915693712,0.002,4478.3,4478.2,13.17203495]
[1756915694309,0.002,4478.3,4478.2,12.72773495]
[1756915694516,0.002,4478.3,4478.2,13.17203495]
[1756915694808,0.002,4478.3,4478.2,9.37403495]
[1756915695013,0.002,4478.3,4478.2,13.17203495]
[1756915695516,0.002,4478.3,4478.2,20.03037385]
[1756915696908,0.002,4478.3,4478.2,20.02937385]
[1756915697116,0.002,4478.3,4478.2,19.58507385]
[1756915697312,0.002,4478.3,4478.2,15.78807385]
[1756915697481,1e-08,4478.3,4478.2,15.48437385]
[1756915697683,0.47480001,4478.3,4478.2,19.28137385]
[1756915697909,0.47480001,4478.3,4478.2,11.63103495]
[1756915698118,0.91060001,4478.3,4478.2,8.08284006]
[1756915698694,0.91060001,4478.3,4478.2,11.87484006]
[1756915699314,0.91060001,4478.3,4478.2,8.08284006]
[1756915699507,0.91060001,4478.3,4478.2,11.08284006]
[1756915700985,0.91060001,4478.3,4478.2,4.06204006]
[1756915701181,0.91060001,4478.3,4478.2,7.85904006]
[1756915701799,0.91060001,4478.3,4478.2,4.06204006]
[1756915702010,0.91060001,4478.3,4478.2,7.85904006]
[1756915702721,0.91060001,4478.3,4478.2,4.06204006]
[1756915702890,0.91060001,4478.3,4478.2,7.85904006]
[1756915705042,0.91060001,4478.3,4478.2,5.626]
[1756915705189,0.91060001,4478.3,4478.2,5.625]
[1756915706124,0.91060001,4478.3,4478.2,1.829]
[1756915706340,0.91060001,4478.3,4478.2,5.625]
[1756915709511,0.91060001,4478.3,4478.2,7.85804006]
[1756915709727,0.91060001,4478.3,4478.2,1.829]
[1756915709930,0.91060001,4478.3,4478.2,5.625]
[1756915711132,0.47480001,4478.3,4478.2,7.85804006]
[1756915711513,0.481,4478.7,4478.5,2.23286063]
[1756915711707,0.002,4478.7,4478.6,3.908]
[1756915712131,0.7427,4478.7,4478.6,3.908]
[1756915712342,1.2217,4478.7,4478.6,3.908]
[1756915713131,0.776,4478.7,4478.6,6.14084061]
[1756915713330,0.776,4478.7,4478.6,2.34484061]
[1756915713607,0.776,4478.7,4478.6,6.14084061]
[1756915714214,0.002,4478.7,4478.6,6.14084061]
[1756915714408,0.776,4478.7,4478.6,6.14084061]
[1756915715148,0.002,4478.7,4478.6,6.14084061]
[1756915715447,0.002,4478.7,4478.6,6.44464061]
[1756915715646,0.002,4478.7,4478.6,2.34484061]
[1756915715852,0.776,4478.7,4478.6,6.14084061]
[1756915716017,0.776,4478.7,4478.6,2.34484061]
[1756915716217,0.776,4478.7,4478.6,6.14084061]
[1756915716452,1.2217,4478.7,4478.6,0.112]
[1756915716656,3.45449076,4478.7,4478.6,2.958]
[1756915716817,1.2217,4478.7,4478.6,2.846]
[1756915717018,3.45449076,4478.7,4478.6,2.846]
[1756915717325,1.2217,4478.7,4478.2,1.829]
[1756915717530,0.9247,4478.6,4478.3,3.796]
[1756915717839,0.295,4478.4,4478.2,1.829]
[1756915718233,0.295,4478.4,4478.3,3.796]
[1756915718751,0.774,4478.4,4478.2,1.829]
[1756915718965,0.295,4478.4,4478.2,1.829]
[1756915719120,0.4457,4478.3,4478.2,1.717]
[1756915719319,0.7407,4478.3,4478.2,5.512]
[1756915719655,1.2197,4478.3,4478.2,5.512]
[1756915719949,0.774,4478.3,4478.2,5.512]
[1756915721947,0.481,4478.7,4478.2,5.624]
[1756915722149,0.774,4478.3,4478.2,5.624]
[1756915722652,1.2197,4478.3,4478.2,1.829]
[1756915722851,1.2197,4478.3,4478.2,3.907]
[1756915723060,1.3317,4478.3,4477.7,0.001]
[1756915723350,3.56470041,4478.3,4477.8,3.795]
[1756915723560,3.15774978,4478.2,4477.8,3.795]
[1756915723739,0.9247,4478.2,4477.8,3.795]
[1756915723944,0.295,4477.9,4477.8,3.795]
[1756915724158,0.774,4477.9,4477.8,3.795]
[1756915724567,0.774,4477.9,4477.7,0.001]
[1756915724723,0.295,4477.9,4477.8,3.795]
[1756915725767,0.295,4477.9,4477.8,6.02823953]
[1756915725990,0.479,4478.2,4477.8,6.02823953]
[1756915726156,3.23629393,4478.5,4477.8,6.02823953]
[1756915726468,0.479,4478.4,4477.9,2.2331794]
[1756915726627,7.02,4478.6,4478.0,4.2328]
[1756915726954,7.02,4478.6,4478.2,2.34499535]
[1756915727156,7.02,4478.6,4478.3,3.795]
[1756915727463,0.479,4478.5,4478.3,3.795]
[1756915727632,0.479,4478.5,4478.3,6.02798094]
[1756915728164,0.002,4478.7,4478.4,2.23294033]
[1756915728460,0.481,4478.7,4478.5,3.795]
[1756915729043,0.481,4478.7,4478.6,3.795]
[1756915729565,0.776,4478.7,4478.6,3.795]
[1756915729766,0.776,4478.7,4478.6,4.0988]
[1756915729767,0.002,4478.7,4478.6,4.0988]
[1756915730063,0.002,4478.7,4478.6,6.44364061]
[1756915730430,0.002,4478.7,4478.6,4.2108]
[1756915730958,0.002,4478.7,4478.6,0.112]
[1756915731268,0.002,4478.7,4478.6,3.906]
[1756915731568,0.002,4478.7,4478.6,6.13884061]
[1756915732064,0.002,4478.7,4478.6,3.906]
[1756915732246,0.002,4478.7,4478.6,6.13884061]
[1756915733641,0.002,4478.7,4478.6,3.906]
[1756915733999,0.002,4478.7,4478.6,6.13884061]
[1756915734148,0.002,4478.7,4478.6,3.52959706]
[1756915734453,0.776,4478.7,4478.6,3.906]
[1756915735470,0.776,4478.7,4478.6,0.112]
[1756915735677,0.776,4478.7,4478.6,3.906]
[1756915735874,0.776,4478.7,4478.6,0.112]
[1756915736095,0.776,4478.7,4478.4,1.717]
[1756915736254,0.7427,4478.7,4478.6,3.794]
[1756915736452,0.297,4478.7,4478.4,1.829]
[1756915736788,0.4457,4478.6,4478.5,3.793]
[1756915736974,1.2197,4478.6,4478.5,3.793]
[1756915737173,8.2397,4478.6,4478.5,3.793]
[1756915737378,7.02,4478.6,4478.5,4.0968]
[1756915737577,7.794,4478.6,4478.5,3.793]
[1756915738548,7.499,4478.6,4478.5,3.793]
[1756915738886,7.02,4478.6,4478.5,4.0968]
[1756915739066,7.02,4478.6,4478.5,0.3038]
[1756915739387,7.02,4478.6,4478.5,4.0968]
[1756915740486,7.02,4478.6,4478.5,2.99649047]
[1756915740787,7.02,4478.6,4478.5,4.5566]
[1756915740988,7.3163,4478.6,4478.4,1.829]
[1756915741168,7.02,4478.6,4478.5,4.0951]
[1756915742361,7.02,4478.6,4478.4,1.829]
[1756915742362,7.7864,4478.6,4478.4,1.829]
[1756915742598,7.7864,4478.6,4478.5,3.793]
[1756915744004,7.02,4478.6,4478.5,3.793]
[1756915745003,0.002,4478.7,4478.5,2.23287133]
[1756915745206,0.4721,4478.7,4478.6,3.792]
[1756915745414,0.002,4478.7,4478.6,3.792]
[1756915745619,0.7684,4478.7,4478.6,3.792]
[1756915746216,0.4721,4478.7,4478.6,3.792]
[1756915746422,0.002,4478.7,4478.6,4.0941]
[1756915746708,0.002,4478.7,4478.6,3.792]
[1756915747705,0.002,4478.7,4478.6,4.0941]
[1756915747911,0.002,4478.7,4478.6,3.792]
[1756915748316,0.002,4478.7,4478.6,4.0941]
[1756915748880,0.002,4478.7,4478.6,3.792]
[1756915749192,0.7684,4478.7,4478.4,0.112]
[1756915749376,7.3284389,4478.6,4478.3,3.792]
[1756915749588,6.8583389,4478.6,4478.3,2.91]
[1756915749796,0.4701,4478.5,4478.3,2.91]
[1756915750111,0.2963,4478.4,4478.3,2.91]
[1756915750703,0.7664,4478.4,4478.3,2.91]
[1756915750926,0.7664,4478.4,4478.2,0.112]
[1756915751076,0.2963,4478.4,4478.3,3.792]
[1756915751281,0.114,4478.7,4478.3,4.0941]
[1756915751599,2.34680351,4478.7,4478.3,3.792]
[1756915751918,0.2963,4478.4,4478.2,0.112]
[1756915752079,0.2963,4478.4,4478.2,3.903]
[1756915752278,0.7664,4478.4,4478.2,3.903]
[1756915752719,0.2963,4478.4,4478.3,3.791]
[1756915753298,0.7664,4478.4,4478.3,3.791]
[1756915753979,2.99934033,4478.4,4478.0,1.829]
[1756915754180,2.23304677,4478.2,4478.0,1.717]
[1756915754384,1.2229,4478.1,4477.8,0.001]
[1756915754620,9.09152856,4477.9,4477.8,0.001]
[1756915755096,10.31442856,4477.9,4477.8,0.001]
[1756915755301,0.7664,4477.9,4477.8,0.001]
[1756915755510,8.7219567,4477.9,4477.8,0.001]
[1756915757316,9.1784567,4477.9,4477.8,0.001]
[1756915758486,12.1784567,4477.9,4477.8,0.001]
[1756915759209,12.28918226,4477.9,4477.8,0.001]
[1756915759422,16.08018226,4477.9,4477.8,0.001]
[1756915762434,15.9694567,4477.9,4477.8,0.001]
[1756915762627,11.7219567,4477.9,4477.8,0.001]
[1756915762827,12.5129567,4477.9,4477.8,0.001]
[1756915764211,6.43248966,4477.9,4477.8,0.001]
[1756915764410,12.6249567,4477.9,4477.8,0.001]
[1756915766433,6.60076704,4477.9,4477.8,0.001]
[1756915766836,8.8339567,4477.9,4477.8,0.001]
[1756915767044,8.5376567,4477.9,4477.8,0.001]
[1756915767259,8.0675567,4477.9,4477.8,0.001]
[1756915767732,0.08955267,4478.0,4477.8,0.3031]
[1756915768053,3.79,4478.1,4477.9,0.4598]
[1756915768234,3.79,4478.1,4478.0,0.7619]
[1756915768634,2.23318966,4477.9,4477.7,0.001]
[1756915768834,2.23333928,4477.6,4476.8,0.025]
[1756915769038,11.25235552,4476.9,4476.8,0.025]
[1756915769245,16.75935552,4476.9,4476.8,0.025]
[1756915769559,17.68595552,4476.9,4476.8,0.025]
[1756915772029,13.89025552,4476.9,4476.8,0.025]
[1756915772327,17.68025552,4476.9,4476.8,0.025]
[1756915773259,17.22945552,4476.9,4476.8,0.025]
[1756915773625,17.68025552,4476.9,4476.8,0.025]
[1756915773931,2.23418753,4475.9,4475.8,0.025]
[1756915774131,6.02418753,4475.9,4475.8,0.025]
[1756915774456,6.82068753,4475.9,4475.8,0.025]
[1756915774763,6.02418753,4475.9,4475.8,0.3387]
[1756915776861,0.67189174,4476.0,4475.8,0.8037]
[1756915777168,2.23409042,4476.1,4475.9,0.465]
[1756915777463,4.4618436,4476.0,4475.8,0.025]
[1756915777961,6.69598122,4476.0,4475.9,0.7787]
[1756915778165,2.23399404,4476.3,4475.9,0.7787]
[1756915778354,3.79,4476.2,4476.0,0.465]
[1756915778536,2.90596048,4476.1,4475.8,0.025]
[1756915778735,3.79,4476.0,4475.8,0.49]
[1756915779031,11.6117783,4475.9,4475.8,0.025]
[1756915779234,6.14268753,4475.9,4475.8,0.025]
[1756915784694,6.14268753,4475.9,4475.8,0.026]
[1756915785713,6.59348753,4475.9,4475.8,0.026]
[1756915786276,0.49,4476.0,4475.8,0.3397]
[1756915786603,0.49,4476.0,4475.9,2.60978753]
[1756915786800,0.112,4476.7,4476.0,2.23413762]
[1756915786988,0.112,4476.7,4476.1,2.3460875]
[1756915787187,0.112,4476.7,4476.6,0.3137]
[1756915787503,3.791,4476.8,4476.6,0.3137]
[1756915787854,3.791,4476.8,4476.7,0.465]
[1756915788059,3.903,4476.9,4476.7,0.7287]
[1756915788258,3.903,4476.9,4476.7,0.3137]
[1756915788766,0.465,4477.2,4476.7,0.3137]
[1756915788988,3.791,4477.1,4476.7,2.54745143]
[1756915789397,0.114,4477.3,4476.9,2.23365026]
[1756915789993,0.114,4477.3,4477.2,0.3137]
[1756915790363,0.114,4477.3,4477.2,0.7787]
[1756915790565,0.114,4477.3,4476.7,0.465]
[1756915790799,0.114,4477.3,4477.2,0.3137]
[1756915792104,0.4277,4477.3,4476.6,0.112]
[1756915792299,2.23363276,4477.1,4476.6,0.112]
[1756915792504,6.0235474,4477.2,4476.6,0.112]
[1756915792800,0.5948,4477.0,4476.4,0.112]
[1756915793001,3.79,4476.9,4476.4,0.112]
[1756915793200,3.79,4476.9,4476.8,0.3137]
[1756915793909,3.79,4476.9,4476.4,0.577]
[1756915794280,3.79,4476.9,4476.8,0.3137]
[1756915794780,6.02368848,4476.9,4476.8,0.3137]
[1756915794975,6.8202172,4476.9,4476.2,0.112]
[1756915795175,4.5865,4476.9,4476.2,0.112]
[1756915795572,2.23380082,4476.7,4476.2,0.112]
[1756915795774,3.79,4476.7,4476.2,0.112]
[1756915795988,3.902,4476.7,4476.3,0.465]
[1756915796309,6.13579259,4476.7,4476.3,0.465]
[1756915796505,6.13579073,4476.7,4476.3,0.465]
[1756915797178,3.902,4476.7,4476.3,0.465]
[1756915797899,6.13579592,4476.7,4476.3,0.465]
[1756915798581,3.902,4476.7,4476.3,0.465]
[1756915798906,6.13582953,4476.7,4476.3,0.465]
[1756915799608,6.61862953,4476.7,4476.3,0.465]
[1756915799997,2.23383856,4476.6,4476.2,0.112]
[1756915800196,6.13579986,4476.7,4476.2,0.112]
[1756915800408,0.112,4476.7,4476.5,0.2985]
[1756915800612,0.112,4477.0,4476.6,0.4547]
[1756915800811,0.114,4477.3,4476.9,0.2985]
[1756915801006,0.114,4477.3,4477.0,0.4547]
[1756915801319,0.114,4477.3,4477.2,0.2985]
[1756915802100,0.002,4477.3,4477.2,0.7532]
[1756915802303,0.002,4477.3,4477.2,0.2985]
[1756915803075,0.002,4477.3,4477.2,0.7532]
[1756915803686,0.002,4477.3,4477.2,0.2985]
[1756915804910,0.002,4477.3,4477.2,0.7532]
[1756915805827,0.002,4477.3,4477.1,0.112]
[1756915805828,2.54758893,4477.3,4477.1,0.112]
[1756915806022,0.002,4477.3,4477.1,0.112]
[1756915806422,0.002,4477.3,4477.2,0.2985]
[1756915807921,0.002,4477.3,4477.2,0.7532]
[1756915808527,0.002,4477.3,4477.2,0.2985]
[1756915808691,0.002,4477.3,4477.1,0.112]
[1756915809422,0.002,4477.3,4477.2,0.2985]
[1756915809790,0.002,4477.3,4477.2,0.7532]
[1756915809994,0.002,4477.3,4477.2,3.29662696]
[1756915810195,0.002,4477.3,4477.2,3.67222696]
[1756915813829,0.002,4477.3,4477.2,0.2985]
[1756915814030,0.3141,4477.3,4477.1,0.112]
[1756915814230,0.3141,4477.3,4476.3,2.23397834]
[1756915814231,2.23361409,4477.1,4476.3,2.23398528]
[1756915814417,2.23365158,4477.0,4476.5,0.112]
[1756915814947,2.23359004,4477.1,4476.5,0.112]
[1756915815232,0.4901,4476.9,4476.5,0.112]
[1756915815448,0.3121,4476.6,4476.5,0.112]
[1756915815599,2.23418753,4475.9,4475.7,0.112]
[1756915815897,1.2486,4475.9,4475.7,0.112]
[1756915816096,1.2486,4475.9,4475.3,0.001]
[1756915816097,3.48278753,4475.9,4475.3,0.001]
[1756915816316,3.48278753,4475.9,4475.5,0.112]
[1756915816516,1.2486,4475.9,4475.5,0.112]
[1756915816736,0.8022,4475.9,4475.5,0.112]
[1756915817453,2.72379322,4476.9,4475.8,0.8912]
[1756915817666,2.34583379,4476.7,4475.8,3.12543557]
[1756915817816,2.34580686,4476.7,4475.9,2.23418753]
[1756915818146,2.34580686,4476.7,4475.8,3.12543318]
[1756915818345,2.34580686,4476.7,4475.9,2.23418318]
[1756915818775,2.2338923,4476.5,4475.8,0.138]
[1756915818972,0.3121,4476.0,4475.8,0.026]
[1756915820343,0.4901,4475.9,4475.8,0.026]
[1756915820654,0.3121,4476.0,4475.8,0.026]
[1756915820974,0.3121,4475.9,4475.8,0.026]
[1756915821172,0.8022,4475.9,4475.8,0.026]
[1756915822153,7.27078753,4475.9,4475.8,0.026]
[1756915822361,7.38278753,4475.9,4475.8,0.026]
[1756915827713,10.38278753,4475.9,4475.8,0.026]
[1756915828171,10.72184934,4475.9,4475.8,0.026]
[1756915828371,10.38278753,4475.9,4475.8,0.026]
[1756915830104,9.91868753,4475.9,4475.8,0.026]
[1756915830491,10.38408753,4475.9,4475.8,0.026]
[1756915830993,9.91868753,4475.9,4475.8,0.026]
[1756915831707,6.13418753,4475.9,4475.8,0.026]
[1756915831898,9.13418753,4475.9,4475.8,0.3158]
[1756915832410,2.69925159,4476.6,4475.8,0.3158]
[1756915832411,2.2079,4476.8,4475.8,0.7713]
[1756915832708,2.23399153,4476.3,4475.9,0.4555]
[1756915832900,3.788,4476.3,4476.2,0.2898]
[1756915833200,3.788,4476.3,4476.2,0.7453]
[1756915833505,6.02198789,4476.3,4476.2,0.2898]
[1756915833667,3.788,4476.3,4475.8,0.138]
[1756915833871,2.23418753,4475.9,4475.8,0.026]
[1756915834102,2.34618753,4475.9,4475.8,0.026]
[1756915834303,3.13048753,4475.9,4475.8,0.026]
[1756915834608,6.13048753,4475.9,4475.8,0.026]
[1756915835305,2.34618753,4475.9,4475.8,0.3158]
[1756915835795,2.64058753,4475.9,4475.8,0.026]
[1756915835991,3.13048753,4475.9,4475.8,0.026]
[1756915837206,6.59588753,4475.9,4475.8,0.026]
[1756915838311,6.13048753,4475.9,4475.8,0.026]
[1756915839314,6.59588753,4475.9,4475.8,0.026]
[1756915839692,6.13048753,4475.9,4475.8,0.026]
[1756915840831,6.59588753,4475.9,4475.8,0.026]
[1756915841322,8.65294934,4475.9,4475.8,0.026]
[1756915842108,12.10188753,4475.9,4475.8,0.026]
[1756915842496,7.84848753,4475.9,4475.8,0.026]
[1756915842698,11.14658753,4475.9,4475.8,0.026]
[1756915843098,10.85218753,4475.9,4475.8,0.3158]
[1756915843299,11.14658753,4475.9,4475.8,0.026]
[1756915843505,12.32894934,4475.9,4475.8,0.026]
[1756915846307,2.2346868,4474.9,4474.8,0.025]
[1756915846517,9.36174861,4474.9,4474.8,0.025]
[1756915846737,10.14604861,4474.9,4474.8,0.025]
[1756915847035,9.91793039,4474.9,4474.8,0.025]
[1756915847241,9.8069868,4474.9,4474.8,0.025]
[1756915847549,9.0226868,4474.9,4474.8,0.025]
[1756915847734,9.3170868,4474.9,4474.8,0.025]
[1756915847925,9.8069868,4474.9,4474.8,0.025]
[1756915848858,21.96021907,4474.9,4474.8,1e-08]
[1756915849060,2.23485589,4474.6,4473.8,0.025]
[1756915849267,2.2351863,4473.9,4473.8,0.025]
[1756915849428,8.0365863,4473.9,4473.8,0.025]
[1756915849622,8.9918863,4473.9,4473.8,0.025]
[1756915849853,8.5264863,4473.9,4473.8,0.025]
[1756915851358,12.33094811,4473.9,4473.8,0.025]
[1756915851858,6.9541863,4473.9,4473.8,0.025]
[1756915852036,10.7421863,4473.9,4473.8,0.3148]
[1756915852632,10.7421863,4473.9,4473.8,0.7703]
[1756915852834,10.7421863,4473.9,4473.8,0.025]
[1756915853365,12.33094811,4473.9,4472.8,0.025]
[1756915853529,0.112,4472.9,4472.8,0.025]
[1756915853732,8.19374783,4472.9,4472.8,0.025]
[1756915853951,8.48814783,4472.9,4472.8,0.025]
[1756915854252,8.97804783,4472.9,4472.8,0.025]
[1756915855986,11.97804783,4472.9,4472.8,0.025]
[1756915856187,2.23643178,4471.5,4470.8,0.7121]
[1756915856386,6.02543178,4471.5,4471.4,0.2898]
[1756915856603,2.23643178,4471.5,4471.4,0.2898]
[1756915858484,2.23643178,4471.5,4471.4,0.7453]
[1756915859787,2.23643178,4471.5,4471.4,0.2898]
[1756915860189,0.112,4471.6,4471.4,0.2898]
[1756915860397,1.719,4471.9,4471.4,0.7275]
[1756915860570,0.112,4472.5,4471.8,0.112]
[1756915860775,0.784452,4472.7,4472.4,0.3148]
[1756915861089,3.789,4472.6,4472.5,0.4377]
[1756915861262,6.02483597,4472.6,4472.5,0.3148]
[1756915861467,3.789,4472.6,4472.5,0.3148]
[1756915861792,3.789,4472.6,4472.5,0.7525]
[1756915861991,0.112,4472.7,4472.5,0.7525]
[1756915862184,0.112,4472.7,4472.5,0.3148]
[1756915862382,3.789,4472.6,4472.5,0.3148]
[1756915862759,3.789,4472.6,4472.5,0.7525]
[1756915863184,0.025,4472.8,4472.5,0.8645]
[1756915863400,3.814,4472.8,4472.6,0.4377]
[1756915863607,3.814,4472.8,4472.7,0.7525]
[1756915863608,0.05,4472.8,4472.7,0.7525]
[1756915864102,2.285736,4472.8,4472.7,0.3148]
[1756915864300,0.05,4472.8,4472.7,0.3148]
[1756915864670,3.839,4472.8,4472.7,0.7525]
[1756915865574,0.05,4472.8,4472.7,0.3148]
[1756915865776,0.3514,4472.8,4471.9,0.4377]
[1756915865989,0.112,4472.7,4472.0,0.112]
[1756915866197,3.789,4472.6,4472.0,0.112]
[1756915866398,3.789,4472.6,4472.5,0.3148]
[1756915866976,0.112,4472.7,4472.5,0.3148]
[1756915867303,3.789,4472.6,4472.5,0.3148]
[1756915867894,3.789,4472.6,4472.5,0.7525]
[1756915868071,3.814,4472.8,4472.5,0.7525]
[1756915868270,3.814,4472.8,4472.6,0.4377]
[1756915868495,0.025,4472.8,4472.7,0.7525]
[1756915869501,0.025,4472.8,4472.7,1.17453755]
[1756915869704,0.025,4472.8,4472.7,3.10028599]
[1756915870487,0.025,4472.8,4472.7,0.8645]
[1756915871107,0.025,4472.8,4472.7,3.10028599]
[1756915872209,0.025,4472.8,4472.7,0.8645]
[1756915872714,0.025,4472.8,4472.7,3.10028599]
[1756915873409,0.025,4472.8,4472.7,3.63390317]
[1756915873611,0.025,4472.8,4472.7,1.39811718]
[1756915873809,0.025,4472.8,4472.7,0.4268]
[1756915874488,0.025,4472.8,4472.7,2.66258599]
[1756915874895,0.025,4472.8,4472.7,0.4268]
[1756915875119,0.025,4472.8,4472.7,2.66258599]
[1756915875482,0.025,4472.8,4472.7,3.10028599]
[1756915875683,0.025,4472.8,4472.7,3.19620099]
[1756915875895,0.025,4472.8,4472.7,0.4268]
[1756915876098,3.478636,4472.8,4472.0,2.23613093]
[1756915876305,7.267636,4472.8,4472.2,0.112]
[1756915876921,5.0319,4472.8,4472.2,0.112]
[1756915877644,1.2429,4472.8,4472.2,0.112]
[1756915877790,3.814,4472.8,4472.7,0.3148]
[1756915877984,0.025,4472.8,4472.7,0.3148]
[1756915878597,0.025,4472.8,4472.7,2.98828599]
[1756915878801,0.025,4472.8,4472.7,0.84841545]
[1756915879000,0.025,4472.8,4472.5,0.112]
[1756915879197,0.025,4472.8,4472.5,2.3478475]
[1756915879708,0.025,4472.8,4472.7,2.55058599]
[1756915880022,0.025,4472.8,4472.7,0.3148]
[1756915880388,0.025,4472.8,4472.5,2.34788445]
[1756915880584,0.4625,4472.7,4472.2,2.23602794]
[1756915880816,0.4625,4472.6,4472.3,0.112]
[1756915881230,0.3014,4472.4,4472.3,0.112]
[1756915881429,1.2179,4472.4,4471.8,0.112]
[1756915881623,1.55696181,4472.4,4471.3,0.001]
[1756915881826,0.112,4471.9,4471.3,0.113]
[1756915882127,2.23629665,4471.7,4471.3,0.113]
[1756915882331,0.4625,4471.6,4471.3,0.113]
[1756915882490,0.4625,4471.6,4471.3,0.001]
[1756915882491,0.3014,4471.4,4471.3,0.001]
[1756915882920,1.2179,4471.4,4471.3,0.001]
[1756915883221,3.45433601,4471.4,4471.3,0.001]
[1756915883415,1.2179,4471.4,4471.3,0.001]
[1756915885919,3.901,4471.5,4471.3,0.001]
[1756915886622,4.3635,4471.5,4471.3,0.001]
[1756915887457,3.901,4471.5,4471.3,0.001]
[1756915888033,3.789,4471.4,4471.3,0.001]
[1756915888557,0.112,4471.5,4471.3,0.3158]
[1756915888867,4.41777195,4471.8,4471.3,2.55228453]
[1756915888868,1.719,4471.8,4471.3,2.55228453]
[1756915889166,3.789,4471.7,4471.4,0.36722845]
[1756915889466,1.719,4471.8,4471.3,0.001]
[1756915889664,1.719,4471.8,4471.4,0.112]